Workbook

Sheet Mittelhilfstabelle
A2: Stunde | B2: Wind | C2: Luftfeuchtigkeit | D2: Luftdruck | E2: Taupunkttemperatur | F2: Bewölkung | H2: Stunde | I2: Wind | J2: Luftfeuchtigkeit | K2: Luftdruck | L2: Taupunkttemperatur | M2: Bewölkung
A3: 00 | B3: 2 | C3: 89 | D3: 1011.2 | E3: -0.8 | F3: 8 | H3: 00 | I3: 2 | J3: 92 | K3: 1004.2 | L3: -5.4 | M3: 7
A4: 01 | B4: 2 | C4: 88 | D4: 1010.9 | E4: -0.5 | F4: 8 | H4: 01 | I4: 2 | J4: 93 | K4: 1004.6 | L4: -5.8 | M4: 8
A5: 02 | B5: 2 | C5: 87 | D5: 1011.1 | E5: -0.5 | F5: 8 | H5: 02 | I5: 2 | J5: 94 | K5: 1005 | L5: -5.8 | M5: 8
A6: 03 | B6: 2 | C6: 88 | D6: 1010.8 | E6: -0.2 | F6: 8 | H6: 03 | I6: 2 | J6: 94 | K6: 1005.2 | L6: -6 | M6: 8
A7: 04 | B7: 3 | C7: 89 | D7: 1010.1 | E7: -0.3 | F7: 8 | H7: 04 | I7: 1 | J7: 95 | K7: 1005.1 | L7: -5.9 | M7: 8
A8: 05 | B8: 3 | C8: 89 | D8: 1009.8 | E8: -0.3 | F8: 8 | H8: 05 | I8: 1 | J8: 95 | K8: 1005.5 | L8: -6.3 | M8: 8
A9: 06 | B9: 2 | C9: 89 | D9: 1010 | E9: -0.2 | F9: 8 | H9: 06 | I9: 1 | J9: 95 | K9: 1005.6 | L9: -6.2 | M9: 8
A10: 07 | B10: 3 | C10: 89 | D10: 1010 | E10: -0.3 | F10: 8 | H10: 07 | I10: 1 | J10: 95 | K10: 1006 | L10: -6.2 | M10: 7
A11: 08 | B11: 2 | C11: 90 | D11: 1009.9 | E11: 0 | F11: 8 | H11: 08 | I11: 0 | J11: 95 | K11: 1006.2 | L11: -6.2 | M11: 7
A12: 09 | B12: 3 | C12: 89 | D12: 1011.3 | E12: 0.6 | F12: 8 | H12: 09 | I12: 1 | J12: 95 | K12: 1006.4 | L12: -5.6 | M12: 7
A13: 10 | B13: 2 | C13: 88 | D13: 1010.8 | E13: 0.7 | F13: 8 | H13: 10 | I13: 1 | J13: 92 | K13: 1006.2 | L13: -4.4 | M13: 7
A14: 11 | B14: 3 | C14: 86 | D14: 1010.8 | E14: 0.8 | F14: 8 | H14: 11 | I14: 1 | J14: 92 | K14: 1006.4 | L14: -3.1 | M14: 7
A15: 12 | B15: 3 | C15: 85 | D15: 1010.8 | E15: 0.9 | F15: 8 | H15: 12 | I15: 0 | J15: 89 | K15: 1005.8 | L15: -1.9 | M15: 7
A16: 13 | B16: 1 | C16: 85 | D16: 1011.3 | E16: 1.1 | F16: 7 | H16: 13 | I16: 1 | J16: 88 | K16: 1005.6 | L16: -2.1 | M16: 7
A17: 14 | B17: 2 | C17: 84 | D17: 1011.3 | E17: 1.4 | F17: 7 | H17: 14 | I17: 2 | J17: 90 | K17: 1005.5 | L17: -1.8 | M17: 6
A18: 15 | B18: 2 | C18: 83 | D18: 1011.3 | E18: 1.2 | F18: 4 | H18: 15 | I18: 2 | J18: 90 | K18: 1005.3 | L18: -1.8 | M18: 8
A19: 16 | B19: 1 | C19: 85 | D19: 1011.5 | E19: 0.8 | F19: 7 | H19: 16 | I19: 2 | J19: 91 | K19: 1005.2 | L19: -2 | M19: 8
A20: 17 | B20: 2 | C20: 85 | D20: 1011.8 | E20: 0.2 | F20: 4 | H20: 17 | I20: 1 | J20: 91 | K20: 1005.2 | L20: -2 | M20: 8
A21: 18 | B21: 2 | C21: 88 | D21: 1012.3 | E21: -0.1 | F21: 4 | H21: 18 | I21: 1 | J21: 91 | K21: 1005.3 | L21: -2 | M21: 8
A22: 19 | B22: 1 | C22: 88 | D22: 1012.8 | E22: -0.1 | F22: 2 | H22: 19 | I22: 1 | J22: 92 | K22: 1005.4 | L22: -2.3 | M22: 8
A23: 20 | B23: 2 | C23: 88 | D23: 1012.8 | E23: -0.2 | F23: 3 | H23: 20 | I23: 1 | J23: 91 | K23: 1005.4 | L23: -2.7 | M23: 8
A24: 21 | B24: 2 | C24: 89 | D24: 1011.9 | E24: -0.5 | F24: 2 | H24: 21 | I24: 2 | J24: 90 | K24: 1005.3 | L24: -3.6 | M24: 8
A25: 22 | B25: 3 | C25: 89 | D25: 1011.9 | E25: -0.3 | F25: 3 | H25: 22 | I25: 2 | J25: 90 | K25: 1005.6 | L25: -4.1 | M25: 8
A26: 23 | B26: 2 | C26: 88 | D26: 1011.7 | E26: -0.2 | F26: 5 | H26: 23 | I26: 2 | J26: 91 | K26: 1005.8 | L26: -4.2 | M26: 8
A27: Mittel | B27: =ROUND(AVERAGE(B3:B26),1) -> 2.2 | C27: =ROUND(AVERAGE(C3:C26),1) -> 87.4 | D27: =ROUND(AVERAGE(D3:D26),1) -> 1011.2 | E27: =AVERAGE(E3:E26) -> 0.1333333333 | F27: =ROUND(AVERAGE(F3:F26),1) -> 6.3 | H27: Mittel | I27: =ROUND(AVERAGE(I3:I26),1) -> 1.3 | J27: =ROUND(AVERAGE(J3:J26),1) -> 92.1 | K27: =ROUND(AVERAGE(K3:K26),1) -> 1005.5 | L27: =AVERAGE(L3:L26) -> -4.058333333 | M27: =ROUND(AVERAGE(M3:M26),1) -> 7.6
E29: 2014-01-31 | L29: 2013-01-28
A32: Stunde | B32: Wind | C32: Luftfeuchtigkeit | D32: Luftdruck | E32: Taupunkttemperatur | F32: Bewölkung | H32: Stunde | I32: Wind | J32: Luftfeuchtigkeit | K32: Luftdruck | L32: Taupunkttemperatur | M32: Bewölkung
A33: 00 | B33: 1 | C33: 91 | D33: 1005.6 | E33: -4.5 | F33: 8 | H33: 00 | I33: 2 | J33: 89 | K33: 1011.4 | L33: -3.3 | M33: 8
A34: 01 | B34: 2 | C34: 91 | D34: 1005.7 | E34: -4.8 | F34: 8 | H34: 01 | I34: 2 | J34: 88 | K34: 1011.3 | L34: -3.3 | M34: 8
A35: 02 | B35: 1 | C35: 91 | D35: 1005.9 | E35: -5.3 | F35: 8 | H35: 02 | I35: 3 | J35: 88 | K35: 1011.2 | L35: -3.3 | M35: 8
A36: 03 | B36: 1 | C36: 91 | D36: 1005.9 | E36: -5.3 | F36: 8 | H36: 03 | I36: 2 | J36: 88 | K36: 1011.2 | L36: -3.3 | M36: 8
A37: 04 | B37: 1 | C37: 91 | D37: 1005.9 | E37: -5.5 | F37: 8 | H37: 04 | I37: 3 | J37: 87 | K37: 1011.2 | L37: -3.3 | M37: 8
A38: 05 | B38: 1 | C38: 91 | D38: 1006 | E38: -5.7 | F38: 8 | H38: 05 | I38: 3 | J38: 86 | K38: 1011.8 | L38: -3.3 | M38: 8
A39: 06 | B39: 2 | C39: 93 | D39: 1005.8 | E39: -5.6 | F39: 8 | H39: 06 | I39: 2 | J39: 87 | K39: 1012 | L39: -3 | M39: 8
A40: 07 | B40: 2 | C40: 94 | D40: 1006.1 | E40: -5.5 | F40: 8 | H40: 07 | I40: 2 | J40: 87 | K40: 1012.7 | L40: -3 | M40: 8
A41: 08 | B41: 2 | C41: 93 | D41: 1006.6 | E41: -5.7 | F41: 8 | H41: 08 | I41: 3 | J41: 85 | K41: 1013.3 | L41: -3.4 | M41: 7
A42: 09 | B42: 2 | C42: 93 | D42: 1006.8 | E42: -5.4 | F42: 8 | H42: 09 | I42: 3 | J42: 84 | K42: 1013.5 | L42: -3.9 | M42: 7
A43: 10 | B43: 2 | C43: 93 | D43: 1007.3 | E43: -5.2 | F43: 8 | H43: 10 | I43: 3 | J43: 84 | K43: 1013.7 | L43: -3.5 | M43: 7
A44: 11 | B44: 2 | C44: 91 | D44: 1007.6 | E44: -5.1 | F44: 8 | H44: 11 | I44: 3 | J44: 84 | K44: 1013.8 | L44: -3.5 | M44: 6
A45: 12 | B45: 2 | C45: 91 | D45: 1007.7 | E45: -4.3 | F45: 8 | H45: 12 | I45: 3 | J45: 82 | K45: 1014 | L45: -3.4 | M45: 5
A46: 13 | B46: 2 | C46: 90 | D46: 1007.9 | E46: -4.5 | F46: 8 | H46: 13 | I46: 3 | J46: 81 | K46: 1014.3 | L46: -3.7 | M46: 3
A47: 14 | B47: 2 | C47: 88 | D47: 1007.5 | E47: -4.3 | F47: 8 | H47: 14 | I47: 3 | J47: 83 | K47: 1013.9 | L47: -3.5 | M47: 1
A48: 15 | B48: 2 | C48: 89 | D48: 1007.9 | E48: -3.7 | F48: 8 | H48: 15 | I48: 2 | J48: 85 | K48: 1014 | L48: -3.8 | M48: 2
A49: 16 | B49: 2 | C49: 87 | D49: 1008.3 | E49: -3.7 | F49: 8 | H49: 16 | I49: 3 | J49: 85 | K49: 1014.1 | L49: -3.9 | M49: 5
A50: 17 | B50: 2 | C50: 89 | D50: 1008.8 | E50: -3.8 | F50: 8 | H50: 17 | I50: 2 | J50: 86 | K50: 1014 | L50: -3.9 | M50: 7
A51: 18 | B51: 2 | C51: 90 | D51: 1009.1 | E51: -3.5 | F51: 8 | H51: 18 | I51: 3 | J51: 88 | K51: 1014 | L51: -3.1 | M51: 8
A52: 19 | B52: 2 | C52: 89 | D52: 1009.6 | E52: -3.3 | F52: 8 | H52: 19 | I52: 3 | J52: 88 | K52: 1013.6 | L52: -2.6 | M52: 8
A53: 20 | B53: 3 | C53: 89 | D53: 1009.9 | E53: -3.1 | F53: 8 | H53: 20 | I53: 3 | J53: 89 | K53: 1013.3 | L53: -2.1 | M53: 8
A54: 21 | B54: 2 | C54: 89 | D54: 1010 | E54: -3.1 | F54: 8 | H54: 21 | I54: 3 | J54: 89 | K54: 1013 | L54: -1.7 | M54: 8
A55: 22 | B55: 3 | C55: 89 | D55: 1010.3 | E55: -3.1 | F55: 8 | H55: 22 | I55: 3 | J55: 89 | K55: 1012.4 | L55: -1.3 | M55: 8
A56: 23 | B56: 1 | C56: 89 | D56: 1010.9 | E56: -3.2 | F56: 8 | H56: 23 | I56: 3 | J56: 88 | K56: 1011.7 | L56: -1.1 | M56: 8
A57: Mittel | B57: =ROUND(AVERAGE(B33:B56),1) -> 1.8 | C57: =ROUND(AVERAGE(C33:C56),1) -> 90.5 | D57: =ROUND(AVERAGE(D33:D56),1) -> 1007.6 | E57: =ROUND(AVERAGE(E33:E56),1) -> -4.5 | F57: =ROUND(AVERAGE(F33:F56),1) -> 8 | H57: Mittel | I57: =ROUND(AVERAGE(I33:I56),1) -> 2.7 | J57: =ROUND(AVERAGE(J33:J56),1) -> 86.3 | K57: =ROUND(AVERAGE(K33:K56),1) -> 1012.9 | L57: =ROUND(AVERAGE(L33:L56),1) -> -3.1 | M57: =ROUND(AVERAGE(M33:M56),1) -> 6.8
E59: 2013-01-29 | L59: 2014-01-30

Sheet Kurztabelle
A2: Wetterwarte: Köttewitz | L2: Monat: | M2: Januar | Y2: Jahr: | Z2: 2014
A4: Dat. | B4: TTT | C4: TxTx | D4: TnTn | E4: Tg | F4: Umin. | G4: UU | H4: NN | I4: RRRR | J4: Art | L4: sss | M4: PPPP | N4: eee | O4: fff | R4: Tage mit | V4: fk | W4: Summe
J5: * | O5: Bft | P5: SS | Q5: Art ( D ) | R5: RR | S5: Ge | T5: Bf6 | U5: Bf8 | V5: Bft | W5: Gewitter
A6: 01. | B6: 1.4 | C6: 4.1 | D6: -0.7 | E6: -2.8 | F6: 80 | G6: 87 | H6: 3.5 | I6: . | L6: 0.3 | M6: 1016.1 | N6: -0.4 | O6: 2 | P6: 0 | V6: 5 | AA6: max >=30,0°C | AB6: max >=25,0°C | AC6: max <0,0°C | AE6: RR >=0,1 mm | AF6: RR >=1,0 mm | AG6: RR >=3,0 mm | AH6: RR >=10,0 mm
A7: 02. | B7: 2.7 | C7: 4.6 | D7: 0.8 | E7: -0.6 | F7: 78 | G7: 85 | H7: 7.2 | I7: . | L7: 0.5 | M7: 1009.9 | N7: 0.3 | O7: 3 | P7: 0 | V7: 5 | AA7: =COUNTIF(C6:C15,">=30") -> 0 | AB7: =COUNTIF(C6:C15,">=25") -> 0 | AC7: =COUNTIF(C6:C15,"<0") -> 0 | AE7: =COUNTIF(I6:I15,">=0,1") -> 6 | AF7: =COUNTIF(I6:I15,">=1") -> 4 | AG7: =COUNTIF(I6:I15,">=3") -> 1 | AH7: =COUNTIF(I6:I15,">=10") -> 0
A8: 03. | B8: 4.3 | C8: 7 | D8: 0.1 | E8: -2.2 | F8: 78 | G8: 87 | H8: 5.3 | I8: 0.3 | J8: R | L8: 0.2 | M8: 1012.5 | N8: 2.2 | O8: 2 | P8: 0 | R8: 1 | V8: 5 | AA8: =COUNTIF(C18:C27,">=30") -> 0 | AB8: =COUNTIF(C18:C27,">=25") -> 0 | AC8: =COUNTIF(C18:C27,"<0") -> 0 | AE8: =COUNTIF(I18:I27,">=0,1") -> 8 | AF8: =COUNTIF(I18:I27,">=1") -> 5 | AG8: =COUNTIF(I18:I27,">=3") -> 2 | AH8: =COUNTIF(I18:I27,">=10") -> 0
A9: 04. | B9: 5.5 | C9: 7.1 | D9: 3.6 | E9: 1.1 | F9: 71 | G9: 85 | H9: 7.1 | I9: 1 | J9: R | L9: . | M9: 1010.2 | N9: 3.2 | O9: 2 | P9: 0 | R9: 1 | V9: 5 | AA9: =COUNTIF(C30:C40,">=30") -> 0 | AB9: =COUNTIF(C30:C40,">=25") -> 0 | AC9: =COUNTIF(C30:C40,"<0") -> 7 | AE9: =COUNTIF(I30:I40,">=0,1") -> 6 | AF9: =COUNTIF(I30:I40,">=1") -> 1 | AG9: =COUNTIF(I30:I40,">=3") -> 1 | AH9: =COUNTIF(I30:I40,">=10") -> 0
A10: 05. | B10: 5.2 | C10: 8.9 | D10: 2.1 | E10: 0.6 | F10: 79 | G10: 91 | H10: 7.4 | I10: 3.1 | J10: R | L10: . | M10: 1007 | N10: 3.8 | O10: 2 | P10: 0 | R10: 1 | V10: 5
A11: 06. | B11: 4.3 | C11: 7.3 | D11: 0.4 | E11: -2.2 | F11: 72 | G11: 86 | H11: 4.5 | I11: 1.9 | J11: R | L11: 0.6 | M11: 1014.7 | N11: 2 | O11: 2 | P11: 0 | R11: 1 | V11: 5 | AA11: min <0,0°C | AB11: min <0-10,0°C | AE11: rel.Lf. 14h >=70% | AG11: rel.Lf. 14h <=40%
A12: 07. | B12: 8.1 | C12: 13.1 | D12: 4.1 | E12: 1.7 | F12: 62 | G12: 80 | H12: 4.7 | I12: 0.5 | J12: R | L12: 0.8 | M12: 1016.8 | N12: 4.8 | O12: 2 | P12: 0 | R12: 1 | V12: 5 | AA12: =COUNTIF(D6:D15,"<0") -> 1 | AB12: =COUNTIF(D6:D15,"<=-10") -> 0 | AE12: =COUNTIF(F6:F15,">=70") -> 6 | AG12: =COUNTIF(F6:F15,"<=40") -> 0
A13: 08. | B13: 9.3 | C13: 13.6 | D13: 5.7 | E13: 4.4 | F13: 63 | G13: 78 | H13: 5.3 | L13: 0.9 | M13: 1018.7 | N13: 5.6 | O13: 2 | P13: 0 | T13: 1 | V13: 6 | AA13: =COUNTIF(D18:D27,"<0") -> 6 | AB13: =COUNTIF(D18:D27,"<=-10") -> 0 | AE13: =COUNTIF(F18:F27,">=70") -> 7 | AG13: =COUNTIF(F18:F27,"<=40") -> 0
A14: 09. | B14: 8.1 | C14: 12.9 | D14: 3 | E14: 1.1 | F14: 62 | G14: 82 | H14: 6.7 | I14: 1.2 | J14: R | L14: . | M14: 1011.2 | N14: 5 | O14: 2 | P14: 0 | R14: 1 | T14: 1 | V14: 7 | AA14: =COUNTIF(D30:D40,"<0") -> 10 | AB14: =COUNTIF(D30:D40,"<=-10") -> 2 | AE14: =COUNTIF(F30:F40,">=70") -> 11 | AG14: =COUNTIF(F30:F40,"<=40") -> 0
A15: 10. | B15: 5.8 | C15: 9.4 | D15: 4.1 | E15: 2.8 | F15: 64 | G15: 73 | H15: 6.2 | I15: . | L15: 1.2 | M15: 1013.5 | N15: 1.4 | O15: 3 | P15: 0 | T15: 1 | V15: 7
A16: Su | B16: =SUM(B6:B15) -> 54.7 | C16: =SUM(C6:C15) -> 88 | D16: 23.2 | E16: 3.9 | F16: XXX | G16: XXX | H16: =SUM(H6:H15) -> 57.9 | I16: =SUM(I6:I15) -> 8 | J16: XX | L16: =SUM(L6:L15) -> 4.5 | M16: =SUM(M6:M15) -> 10130.6 | N16: 27.9 | O16: 22 | P16: =COUNT(P6:P15) -> 10 | Q16: X | R16: =SUM(R6:R15) -> 6 | S16: =SUM(S6:S15) -> 0 | T16: 3 | U16: 0 | V16: XXX | AA16: ohne Sonne | AB16: Son. 0,1-0,9 | AC16: Son. >=10,0 | AE16: Sch. >=1 cm | AF16: Sch. >=3 cm | AG16: Sch. >=10 cm
A17: Mi | B17: =AVERAGE(B6:B15) -> 5.47 | C17: =AVERAGE(C6:C15) -> 8.8 | D17: 2.32 | E17: 0.39 | F17: XXX | G17: 83.4 | H17: 5.79 | I17: =I16/10 -> 0.8 | J17: XX | L17: =L16/10 -> 0.45 | M17: =AVERAGE(M6:M15) -> 1013.06 | N17: =AVERAGE(N6:N15) -> 2.79 | O17: 2.2 | P17: =ROUND(AVERAGE(P6:P15),1) -> 0 | Q17: X | R17: XX | S17: XX | T17: XX | U17: XX | V17: =AVERAGE(V6:V15) -> 5.5 | AA17: =COUNTIF(L6:L15,".") -> 3 | AB17: =COUNTIF(L6:L15,"<1") -> 6 | AC17: =COUNTIF(L6:L15,">=10") -> 0 | AE17: =COUNTIF(P6:P15,">=1") -> 0 | AF17: =COUNTIF(P6:P15,">=3") -> 0 | AG17: =COUNTIF(P6:P15,">=10") -> 0
A18: 11. | B18: 4.9 | C18: 7.9 | D18: 0.9 | E18: -1.7 | F18: 57 | G18: 76 | H18: 5 | I18: 0.8 | J18: R | L18: 0.8 | M18: 1016.1 | N18: 1.1 | O18: 2 | P18: 0 | R18: 1 | T18: 1 | V18: 7 | AA18: =COUNTIF(L18:L27,".") -> 6 | AB18: =COUNTIF(L18:L27,"<1") -> 2 | AC18: =COUNTIF(L18:L27,">=10") -> 0 | AE18: =COUNTIF(P18:P27,">=1") -> 1 | AF18: =COUNTIF(P18:P27,">=3") -> 0 | AG18: =COUNTIF(P18:P27,">=10") -> 0
A19: 12. | B19: 2.9 | C19: 5.1 | D19: -0.1 | E19: -1.1 | F19: 66 | G19: 77 | H19: 5.4 | I19: . | L19: 1.7 | M19: 1021.4 | N19: -0.7 | O19: 3 | P19: 0 | T19: 1 | V19: 7 | AA19: =COUNTIF(L30:L40,".") -> 6 | AB19: =COUNTIF(L30:L40,"<1") -> 2 | AC19: =COUNTIF(L30:L40,">=10") -> 0 | AE19: =COUNTIF(P30:P40,">=1") -> 11 | AF19: =COUNTIF(P30:P40,">=3") -> 11 | AG19: =COUNTIF(P30:P40,">=10") -> 0
A20: 13. | B20: 0.7 | C20: 5.7 | D20: -3.9 | E20: -5.6 | F20: 69 | G20: 85 | H20: 6.4 | I20: 2.6 | J20: R | L20: 0.5 | M20: 1015.7 | N20: -1.6 | O20: 1 | P20: 0 | R20: 1 | V20: 4
A21: 14. | B21: 2.2 | C21: 3.4 | D21: 1.4 | E21: 1.1 | F21: 91 | G21: 95 | H21: 8 | I21: 4.2 | J21: R;S | L21: . | M21: 1009.3 | N21: 1.5 | O21: 1 | P21: 0 | R21: 1 | V21: 3 | AA21: Max TT | AB21: Max TxTx | AC21: Min TgTg | AE21: Max RR
A22: 15. | B22: 1.3 | C22: 3.4 | D22: -1 | E22: -2.2 | F22: 96 | G22: 97 | H22: 7.2 | I22: 4.8 | J22: R | L22: . | M22: 1011.6 | N22: 0.9 | O22: 1 | P22: 1 | R22: 1 | V22: 3 | AA22: =MAX(B6:B15,B18:B27,B30:B40) -> 9.3 | AB22: =MAX(C6:C15,C18:C27,C30:C40) -> 13.6 | AC22: =MIN(E6:E15,E18:E27,E30:E40) -> -15 | AE22: =MAX(I6:I15,I18:I27,I30:I40) -> 6.1
A23: 16. | B23: 2.2 | C23: 5.1 | D23: -1.5 | E23: -3.3 | F23: 85 | G23: 92 | H23: 7.7 | I23: 1.4 | J23: R | L23: . | M23: 1008.2 | N23: 1 | O23: 2 | P23: 0 | R23: 1 | V23: 4 | AA23: Min TT | AB23: Min TnTn | AC23: Min U14 | AE23: Max SS
A24: 17. | B24: 3.7 | C24: 7 | D24: 0.9 | E24: -1.1 | F24: 82 | G24: 91 | H24: 7.6 | I24: 0.2 | J24: R | L24: . | M24: 1006.3 | N24: 2.4 | O24: 1 | P24: 0 | R24: 1 | V24: 3 | AA24: =MIN(B6:B15,B18:B27,B30:B40) -> -10.2 | AB24: =MIN(D6:D15,D18:D27,D30:D40) -> -14.7 | AC24: =MIN(F6:F15,F18:F27,F30:F40) -> 57 | AE24: =MAX(P6:P15,P18:P27,P30:P40) -> 7
A25: 18. | B25: 2.8 | C25: 5.7 | D25: -0.2 | E25: -2.2 | F25: 88 | G25: 94 | H25: 4.7 | I25: . | L25: 1.7 | M25: 1008.5 | N25: 1.9 | O25: 2 | P25: 0 | V25: 5
A26: 19. | B26: 4.4 | C26: 5.8 | D26: 2.9 | E26: 1.7 | F26: 93 | G26: 94 | H26: 8 | I26: 0.2 | J26: R | L26: . | M26: 1004.5 | N26: 3.6 | O26: 2 | P26: 0 | R26: 1 | V26: 4
A27: 20. | B27: 1.2 | C27: 2.9 | D27: -0.3 | E27: 0 | F27: 95 | G27: 97 | H27: 8 | I27: 2.9 | J27: R | L27: . | M27: 1004.9 | N27: 0.8 | O27: 1 | P27: 0 | R27: 1 | V27: 3
A28: Su | B28: =SUM(B18:B27) -> 26.3 | C28: =SUM(C18:C27) -> 52 | D28: -0.9 | E28: -14.4 | F28: XXX | G28: XXX | H28: =SUM(H18:H27) -> 68 | I28: =SUM(I18:I27) -> 17.1 | J28: XX | L28: =SUM(L18:L27) -> 4.7 | M28: =SUM(M18:M27) -> 10106.5 | N28: 10.9 | O28: 16 | P28: =COUNT(P18:P27) -> 10 | Q28: X | R28: =SUM(R18:R27) -> 8 | S28: =SUM(S18:S27) -> 0 | T28: 2 | U28: 0 | V28: XXX
A29: Mi | B29: =AVERAGE(B18:B27) -> 2.63 | C29: =AVERAGE(C18:C27) -> 5.2 | D29: -0.09 | E29: -1.44 | F29: 82.2 | G29: 89.8 | H29: 6.8 | I29: =I28/10 -> 1.71 | J29: XX | L29: =L28/10 -> 0.47 | M29: =AVERAGE(M18:M27) -> 1010.65 | N29: =AVERAGE(N18:N27) -> 1.09 | O29: 1.6 | P29: =ROUND(AVERAGE(P18:P27),1) -> 0.1 | Q29: X | R29: XX | S29: XX | T29: XX | U29: XX | V29: =AVERAGE(V18:V27) -> 4.3
A30: 21. | B30: -1.4 | C30: -0.2 | D30: -2.4 | E30: -2.2 | F30: 97 | G30: 98 | H30: 8 | I30: 6.1 | J30: S;R | L30: . | M30: 1011.2 | N30: -1.7 | O30: 1 | P30: 3 | Q30: * | R30: 1 | V30: 3
A31: 22. | B31: -2.9 | C31: -1.5 | D31: -4.4 | E31: -4.4 | F31: 92 | G31: 95 | H31: 8 | I31: 0.3 | J31: S | L31: . | M31: 1016.2 | N31: -3.6 | O31: 1 | P31: 7 | Q31: * | R31: 1 | V31: 2
A32: 23. | B32: -2.7 | C32: -0.8 | D32: -4.4 | E32: -4.4 | F32: 91 | G32: 95 | H32: 8 | I32: 0.5 | J32: S | L32: . | M32: 1016.2 | N32: -3.6 | O32: 1 | P32: 6 | Q32: * | R32: 1 | V32: 4
A33: 24. | B33: -2.6 | C33: -0.7 | D33: -6.3 | E33: -6.1 | F33: 91 | G33: 93 | H33: 8 | I33: 0.1 | J33: S | L33: . | M33: 1016.8 | N33: -3.5 | O33: 2 | P33: 5 | Q33: * | R33: 1 | V33: 4
A34: 25. | B34: -10.2 | C34: -6.3 | D34: -14.2 | E34: -14.4 | F34: 84 | G34: 89 | H34: 7.3 | I34: 0.1 | J34: S | L34: 0.1 | M34: 1022.9 | N34: -11.4 | O34: 1 | P34: 4 | Q34: * | R34: 1 | V34: 3
A35: 26. | B35: -8.1 | C35: -3.7 | D35: -14.7 | E35: -15 | F35: 81 | G35: 88 | H35: 6 | I35: 0 | L35: 3 | M35: 1011.4 | N35: -9.9 | O35: 2 | P35: 4 | Q35: * | V35: 4
A36: 27. | B36: -2.4 | C36: 0.3 | D36: -5 | E36: -5.6 | F36: 86 | G36: 90 | H36: 8 | I36: 0.9 | J36: S | L36: . | M36: 1001.3 | N36: -3.8 | O36: 2 | P36: 5 | Q36: * | R36: 1 | V36: 5
A37: 28. | B37: -2.9 | C37: 0.2 | D37: -5.9 | E37: -8.3 | F37: 87 | G37: 92 | H37: 7.6 | I37: . | L37: 0.8 | M37: 1005.5 | N37: -4.1 | O37: 1 | P37: 4 | Q37: * | V37: 3
A38: 29. | B38: -3.1 | C38: -1.4 | D38: -4.8 | E38: -4.4 | F38: 87 | G38: 90 | H38: 8 | I38: . | L38: . | M38: 1007.6 | N38: -4.5 | O38: 2 | P38: 4 | Q38: * | V38: 4
A39: 30. | B39: -1 | C39: 0.8 | D39: -2.1 | E39: -2.8 | F39: 81 | G39: 86 | H39: 6.8 | I39: . | L39: 2.6 | M39: 1012.9 | N39: -3.1 | O39: 3 | P39: 4 | Q39: * | T39: 1 | V39: 6
A40: 31. | B40: 2.1 | C40: 4.5 | D40: 0.8 | E40: -0.6 | F40: 81 | G40: 87 | H40: 6.3 | I40: . | L40: 1.5 | M40: 1011.2 | N40: 0.1 | O40: 2 | P40: 3 | Q40: D | T40: 1 | V40: 6
A41: Su | B41: =SUM(B30:B40) -> -35.2 | C41: =SUM(C30:C40) -> -8.8 | D41: =SUM(D30:D40) -> -63.4 | E41: =SUM(E30:E40) -> -68.2 | F41: XXX | G41: =SUM(G30:G40) -> 1003 | H41: =SUM(H30:H40) -> 82 | I41: =SUM(I30:I40) -> 8 | J41: XX | L41: =SUM(L30:L40) -> 8 | M41: =SUM(M30:M40) -> 11133.2 | N41: =SUM(N30:N40) -> -49.1 | O41: =SUM(O30:O40) -> 18 | P41: =COUNT(P30:P40) -> 11 | Q41: X | R41: =SUM(R30:R40) -> 6 | S41: =SUM(S30:S40) -> 0 | T41: =SUM(T30:T40) -> 2 | U41: =SUM(U30:U40) -> 0 | V41: XXX
A42: Mi | B42: =AVERAGE(B30:B40) -> -3.2 | C42: =AVERAGE(C30:C40) -> -0.8 | D42: =AVERAGE(D30:D40) -> -5.763636364 | E42: =AVERAGE(E30:E40) -> -6.2 | F42: XXX | G42: =AVERAGE(G30:G40) -> 91.18181818 | H42: =AVERAGE(H30:H40) -> 7.454545455 | I42: XXXXX | J42: XX | L42: XXXX | M42: =AVERAGE(M30:M40) -> 1012.109091 | N42: =AVERAGE(N30:N40) -> -4.463636364 | O42: =AVERAGE(O30:O40) -> 1.636363636 | P42: =ROUND(AVERAGE(P30:P40),1) -> 4.5 | Q42: X | R42: XX | S42: XX | T42: XX | U42: XX | V42: =AVERAGE(V30:V40) -> 4
A43: MSu | B43: =SUM(B16+B28+B41) -> 45.8 | C43: =SUM(C16+C28+C41) -> 131.2 | D43: =SUM(D16+D28+D41) -> -41.1 | E43: =SUM(E16+E28+E41) -> -78.7 | F43: XXX | G43: XXX, | H43: =SUM(H16+H28+H41) -> 207.9 | I43: =SUM(I16+I28+I41) -> 33.1 | J43: XX | L43: =SUM(L16+L28+L41) -> 17.2 | M43: =SUM(M16+M28+M41) -> 31370.3 | N43: =SUM(N16+N28+N41) -> -10.3 | O43: XXX | P43: =SUM(P16+P28+P41) -> 31 | Q43: X | R43: =SUM(R16+R28+R41) -> 20 | S43: =SUM(S16+S28+S41) -> 0 | T43: =SUM(T16+T28+T41) -> 7 | U43: =SUM(U16+U28+U41) -> 0 | V43: XXX
A44: MMi | B44: =AVERAGE(B6:B15,B18:B27,B30:B40) -> 1.477419355 | C44: =AVERAGE(C6:C15,C18:C27,C30:C40) -> 4.232258065 | D44: =AVERAGE(D6:D15,D18:D27,D30:D40) -> -1.325806452 | E44: =AVERAGE(E6:E15,E18:E27,E30:E40) -> -2.538709677 | F44: XXX | G44: =AVERAGE(G6:G15,G18:G27,G30:G40) -> 88.22580645 | H44: =AVERAGE(H6:H15,H18:H27,H30:H40) -> 6.706451613 | I44: XXXXX | J44: XX | L44: XXXX | M44: =AVERAGE(M6:M15,M18:M27,M30:M40) -> 1011.945161 | N44: =AVERAGE(N6:N15,N18:N27,N30:N40) -> -0.3322580645 | O44: =AVERAGE(O6:O15,O18:O27,O30:O40) -> 1.806451613 | P44: =ROUND(AVERAGE(P6:P15,P18:P27,P30:P40),1) -> 1.6 | Q44: X | R44: XX | S44: XX | T44: XX | U44: XX | V44: =AVERAGE(V17,V29,V42) -> 4.6
B46: Norm | C46: % v N.- | D46: Abw. | E46: Zahl der Tage | L46: Niederschlag mm | P46: Sonnensch.-dauer Std
B47: wert | C47: wert | D47: K | E47: Max.d.Lufttemp.°C | L47: >/= 0,1 | O47: =SUM(AE7:AE9) -> 20 | P47: ohne Sonne | V47: 15
A48: TTT | B48: 0.5 | C48: XXXX | D48: =SUM(B44-B48) -> 0.9774193548 | E48: Tropentag/Hitzetag | I48: =SUM(AA7:AA9) -> 0 | L48: >/= 1,0 | O48: =SUM(AF7:AF9) -> 10 | P48: 0,1 bis 0,9 | V48: 10
A49: RRR | B49: 45 | C49: =SUM(I43*100/B49) -> 73.55555556 | D49: XXXX | E49: Sommertag | I49: =SUM(AB7:AB9) -> 0 | L49: >/= 3,0 | O49: =SUM(AG7:AG9) -> 4 | P49: >/= 10,0 | V49: =SUM(AC17:AC19) -> 0
A50: sss | B50: 64 | C50: =SUM(L43*100/B50) -> 26.875 | D50: XXXX | E50: Eistag | I50: =SUM(AC7:AC9) -> 7 | L50: >/=10,0 | O50: =SUM(AH7:AH9) -> 0 | P50: Schneedecke cm
A51: astr. | D51: XXXX | E51: Polartag | I51: 0 | L51: >/= 20,0 | O51: =SUM(AI7,AI9) -> 0 | P51: >/= 1 | V51: =SUM(AE17:AE19) -> 12
A52: mgl. | B52: 264 | C52: =SUM(L43*100/B52) -> 6.515151515 | D52: XXXX | E52: Min.d.Lufttemp.°C | L52: Rel. Luftfeuchte 14 Uhr | P52: >/= 3 | V52: =SUM(AF17:AF19) -> 11
A53: sss | D53: XXXX | E53: Frosttag | I53: =SUM(AA12:AA14) -> 17 | L53: >/=70% | O53: =SUM(AE12:AE14) -> 24 | P53: >/= 10 | V53: =SUM(AG17:AG19) -> 0
E54: Tropennacht | I54: 0 | L54: </=40% | O54: =SUM(AG12:AG14) -> 0
E57: Unter "Tage mit" sind die Angaben Bft 6 & Bft 8 nicht 10 min. - Mittel sonder 2,5 s - Werte.
E58: Wenn ein Wert auch mit einem 10 min. - Wert erreicht wird, erfolgt eine rote Markierung.
E59: Dies gilt rückwirkend auf November 2012.
F113: Tage mit Bft 6 /8 eigentlich in 10 min. - Mittel

Sheet Sichtst.
E1: Sichtweitenstatistik
B5: Wetterstation: Köttewitz | F5: Monat: | G5: Januar | K5: Jahr: | L5: 2014
A7: Dat. | B7: Nebeldauer | C7: Nebel | D7: Dunst | E7: Sicht | F7: Sicht | G7: Sicht | H7: Sicht
B8: in St. u. Min. | E8: mittel | F8: normal | G8: gut | H8: sehr gut
A9: 01. | B9: - | C9: - | D9: - | E9: - | F9: 1 | G9: - | H9: - | N9: =IF(ISNUMBER(B9),B9*24," ") ->  | O9: =IF(ISNUMBER(N9),IF(N9<1,1," ")," ") ->  | P9: =IF(ISNUMBER(N9),IF(N9<8,2," ")," ") ->  | Q9: =IF(ISNUMBER(N9),IF(N9<24,3," ")," ") ->  | R9: =MIN(O9:Q9) -> 0
A10: 02. | B10: - | C10: =IF(R10=1,1,"-") -> - | D10: - | E10: 1 | F10: 1 | G10: - | H10: - | R10: 0
A11: 03. | B11: - | C11: - | D11: - | E11: 1 | F11: 1 | G11: - | H11: - | R11: 0
A12: 04. | B12: - | C12: - | D12: - | E12: 1 | F12: 1 | G12: - | H12: - | R12: 0
A13: 05. | B13: - | C13: - | D13: - | E13: 1 | F13: 1 | G13: - | H13: - | R13: 0
A14: 06. | B14: - | C14: - | D14: - | E14: - | F14: 1 | G14: - | H14: - | R14: 0
A15: 07. | B15: - | C15: - | D15: - | E15: - | F15: 1 | G15: 1 | H15: - | R15: 0
A16: 08. | B16: - | C16: - | D16: - | E16: - | F16: 1 | G16: 1 | H16: 1 | R16: 0
A17: 09. | B17: - | C17: - | D17: - | E17: - | F17: 1 | G17: - | H17: - | R17: 0
A18: 10. | B18: - | C18: - | D18: - | E18: - | F18: 1 | G18: 1 | H18: - | R18: 0
A19: 11. | B19: - | C19: - | D19: - | E19: - | F19: 1 | G19: 1 | H19: - | R19: 0
A20: 12. | B20: - | C20: - | D20: - | E20: - | F20: 1 | G20: 1 | H20: - | R20: 0
A21: 13. | B21: - | C21: - | D21: - | E21: 1 | F21: 1 | G21: - | H21: - | R21: 0
A22: 14. | B22: - | C22: - | D22: 1 | E22: 1 | F22: - | G22: - | H22: - | R22: 0
A23: 15. | B23: 05:30:00 | C23: 1 | D23: 1 | E23: 1 | F23: - | G23: - | H23: - | N23: 5.5 | P23: 2 | Q23: 3 | R23: 2
A24: 16. | B24: - | C24: - | D24: - | E24: 1 | F24: 1 | G24: - | H24: - | R24: 0
A25: 17. | B25: - | C25: - | D25: - | E25: 1 | F25: 1 | G25: - | H25: - | R25: 0
A26: 18. | B26: - | C26: - | D26: - | E26: 1 | F26: 1 | G26: - | H26: - | R26: 0
A27: 19. | B27: - | C27: - | D27: - | E27: 1 | F27: - | G27: - | H27: - | R27: 0
A28: 20. | B28: - | C28: - | D28: 1 | E28: 1 | F28: - | G28: - | H28: - | R28: 0
A29: 21. | B29: - | C29: - | D29: 1 | E29: - | F29: - | G29: - | H29: - | R29: 0
A30: 22. | B30: - | C30: - | D30: 1 | E30: - | F30: - | G30: - | H30: - | R30: 0
A31: 23. | B31: - | C31: - | D31: 1 | E31: 1 | F31: - | G31: - | H31: - | R31: 0
A32: 24. | B32: - | C32: - | D32: 1 | E32: 1 | F32: - | G32: - | H32: - | R32: 0
A33: 25. | B33: - | C33: - | D33: 1 | E33: 1 | F33: - | G33: - | H33: - | R33: 0
A34: 26. | B34: - | C34: - | D34: - | E34: 1 | F34: - | G34: - | H34: - | R34: 0
A35: 27. | B35: - | C35: - | D35: - | E35: 1 | F35: - | G35: - | H35: - | R35: 0
A36: 28. | B36: - | C36: - | D36: - | E36: 1 | F36: - | G36: - | H36: - | R36: 0
A37: 29. | B37: - | C37: - | D37: 1 | E37: 1 | F37: - | G37: - | H37: - | R37: 0
A38: 30. | B38: - | C38: - | D38: - | E38: 1 | F38: 1 | G38: - | H38: - | R38: 0
A39: 31. | B39: - | C39: - | D39: - | E39: - | F39: 1 | G39: - | H39: - | R39: 0
A40: Su. | B40: =SUM(B9:B39) -> 05:30:00 | C40: =SUM(C9:C39) -> 1 | D40: =SUM(D9:D39) -> 9 | E40: =SUM(E9:E39) -> 20 | F40: 18 | G40: 5 | H40: 1
B42: Anzahl der Nebeltage : | E42: =SUM(C40) -> 1
B43: Anzahl der Tage Sicht >= 50 km : | E43: =SUM(G40) -> 5

Sheet Monatsdiagramm
A1: Klimadiagramm | C1: Wetterstation Köttewitz | I1: (213 m ü. NHN)
A3: Januar 2014
C5: aktuell | D5: langj. Mittel | E5: Abw. vom lj. Mittel
B6: höchste Temperatur (°C): | C6: =MAX('Daten für Diagr.'!C2:C29) -> 13.6 | D6: am | E6: 2014-01-08
B7: mittlere Temperatur (°C): | C7: ='Daten für Diagr.'!B33 -> 1.477419355 | D7: =Kurztabelle!B48 -> 0.5 | E7: =C7-D7 -> 0.9774193548 | F7: K
B8: tiefste Temperatur (°C): | C8: =MIN('Daten für Diagr.'!D2:D32) -> -14.7 | D8: am | E8: 2014-01-26
B9: Niederschlagshöhe (mm): | C9: =Kurztabelle!I43 -> 33.1 | D9: =Kurztabelle!B49 -> 45 | E9: =100/D9*C9 -> 73.55555556 | F9: %
B10: Sonnenscheindauer (Std.)*: | C10: =Kurztabelle!L43 -> 17.2 | D10: =Kurztabelle!B50 -> 64 | E10: =100/D10*C10 -> 26.875 | F10: %
A66: *Die Wetterstation kann, durch geographische Hindernisse, nicht die maximal mögliche Sonnenscheindauer aufzeichnen. Es gilt ein Übergangsprozentsatz von: Dez 30 %; Okt/Nov & Jan/Feb 40 %; Mär 65 %; Apr & Sep 80 %; Mai - August 90 %.
A67: Diese Werte entsprechend annähernd 100 % (Normalwert Köttewitz). Nach 10 Jahren erfolgt die Umstellung des Prozentsatzes nach der örtlichen Aufzeichnung.

Sheet Daten für Diagr.
B1: Td | C1: Tmax | D1: Tmin | E1: RR | F1: Schnee | G1: Sonne | H1: Luftdr. | I1: MWT | J1: GWL | K1: Name | L1: Sonstiges
A2: 2014-01-01 | B2: 1.4 | C2: 4.1 | D2: -0.7 | G2: 0.3 | H2: 1016.1 | I2: 0.45 | J2: Wz | K2: T Gerhard
A3: 2014-01-02 | B3: 2.7 | C3: 4.6 | D3: 0.8 | G3: 0.5 | H3: 1009.9 | I3: 0.45
A4: 2014-01-03 | B4: 4.3 | C4: 7 | D4: 0.1 | E4: 0.3 | G4: 0.2 | H4: 1012.5 | I4: 0.45 | K4: T Anne
A5: 2014-01-04 | B5: 5.5 | C5: 7.1 | D5: 3.6 | E5: 1 | H5: 1010.2 | I5: 0.4
A6: 2014-01-05 | B6: 5.2 | C6: 8.9 | D6: 2.1 | E6: 3.1 | H6: 1007 | I6: 0.4 | K6: T Balda
A7: 2014-01-06 | B7: 4.3 | C7: 7.3 | D7: 0.4 | E7: 1.9 | G7: 0.6 | H7: 1014.7 | I7: 0.4 | K7: T Christiane
A8: 2014-01-07 | B8: 8.1 | C8: 13.1 | D8: 4.1 | E8: 0.5 | G8: 0.8 | H8: 1016.8 | I8: 0.35 | J8: SWz | L8: Singvögel werden aktiv.
A9: 2014-01-08 | B9: 9.3 | C9: 13.6 | D9: 5.7 | G9: 0.9 | H9: 1018.7 | I9: 0.35
A10: 2014-01-09 | B10: 8.1 | C10: 12.9 | D10: 3 | E10: 1.2 | H10: 1011.2 | I10: 0.35 | K10: T Dagmar
A11: 2014-01-10 | B11: 5.8 | C11: 9.4 | D11: 4.1 | G11: 1.2 | H11: 1013.5 | I11: 0.35 | J11: Wz
A12: 2014-01-11 | B12: 4.9 | C12: 7.9 | D12: 0.9 | E12: 0.8 | G12: 0.8 | H12: 1016.1 | I12: 0.35
A13: 2014-01-12 | B13: 2.9 | C13: 5.1 | D13: -0.1 | G13: 1.7 | H13: 1021.4 | I13: 0.35
A14: 2014-01-13 | B14: 0.7 | C14: 5.7 | D14: -3.9 | E14: 2.6 | G14: 0.5 | H14: 1015.7 | I14: 0.4 | K14: T Gudrun
A15: 2014-01-14 | B15: 2.2 | C15: 3.4 | D15: 1.4 | E15: 4.2 | F15: 0 | H15: 1009.3 | I15: 0.4 | L15: Von 18:10 Uhr - 23:59 Uhr starker Dunst. Von 17:40 Uhr - 18:09 Uhr mäßiger Dunst. Von 16:20 Uhr - 17:39 Uhr leichter Dunst.
A16: 2014-01-15 | B16: 1.3 | C16: 3.4 | D16: -1 | E16: 4.8 | F16: 1 | H16: 1011.6 | I16: 0.4 | L16: Von 09:00 Uhr - 09:39 Uhr mäßiger Nebel. Von 08:10 Uhr - 08:59 Uhr; 09:40 Uhr - 13:39 Uhr leichter Nebel. Von 00:00 Uhr - 08:09 Uhr starker Dunst.
A17: 2014-01-16 | B17: 2.2 | C17: 5.1 | D17: -1.5 | E17: 1.4 | F17: 0 | H17: 1008.2 | I17: 0.4 | K17: T Helga
A18: 2014-01-17 | B18: 3.7 | C18: 7 | D18: 0.9 | H18: 1006.3 | I18: 0.4 | J18: TrW
A19: 2014-01-18 | B19: 2.8 | C19: 5.7 | D19: -0.2 | G19: 1.7 | H19: 1008.5 | I19: 0.45 | J19: U
A20: 2014-01-19 | B20: 4.4 | C20: 5.8 | D20: 2.9 | E20: 0.2 | H20: 1004.5 | I20: 0.45 | J20: SEz | K20: T Ilona
A21: 2014-01-20 | B21: 1.2 | C21: 2.9 | D21: -0.3 | E21: 2.9 | F21: 0 | H21: 1004.9 | I21: 0.45 | L21: Von 21:40 Uhr - 23:59 Uhr starker Dunst. Von 06:00 Uhr - 17:59 Uhr; 21:00 Uhr - 21:39 Uhr mäßiger Dunst. Von 01:30 Uhr - 05:59 Uhr; 18:00 Uhr - 20 :59 Uhr leichter Dunst. Ww 56
A22: 2014-01-21 | B22: -1.4 | C22: -0.2 | D22: -2.4 | E22: 6.1 | F22: 3 | H22: 1011.2 | I22: 0.45 | L22: Von 00:00 Uhr - 01:59 Uhr strarker Dunst. Von 02:00 Uhr - 13:49 Uhr mäßiger Dunst. Von 13:50 Uhr - 23:59 Uhr leichter Dunst.
A23: 2014-01-22 | B23: -2.9 | C23: -1.5 | D23: -4.4 | E23: 0.3 | F23: 7 | H23: 1016.2 | I23: 0.45 | J23: HFa | K23: H Benjamin | L23: Von 02:00 Uhr - 10:39 Uhr mäßiger Dunst.Von 00:00 Uhr - 01:59 Uhr; 10:40 Uhr - 23:59 Uhr leichter Dunst.
A24: 2014-01-23 | B24: -2.7 | C24: -0.8 | D24: -4.4 | E24: 0.5 | F24: 6 | H24: 1016.2 | I24: 0.5 | L24: Von 00:00 Uhr - 10:39 Uhr; 20:50 Uhr - 23:59 Uhr leichter Dunst.
A25: 2014-01-24 | B25: -2.6 | C25: -0.7 | D25: -6.3 | E25: 0.1 | F25: 5 | H25: 1016.8 | I25: 0.5 | L25: Von 00:00 Uhr - 13:49 Uhr; 19:30 Uhr - 23:59 Uhr leichter Dunst.
A26: 2014-01-25 | B26: -10.2 | C26: -6.3 | D26: -14.2 | E26: 0.1 | F26: 4 | H26: 1022.9 | I26: 0.5 | L26: Von 00:00 Uhr - 09:29 Uhr leichter Dunst.
A27: 2014-01-26 | B27: -8.1 | C27: -3.7 | D27: -14.7 | F27: 4 | G27: 3 | H27: 1011.4 | I27: 0.5 | J27: HFz
A28: 2014-01-27 | B28: -2.4 | C28: 0.3 | D28: -5 | E28: 0.9 | F28: 5 | H28: 1001.3 | I28: 0.5
A29: 2014-01-28 | B29: -2.9 | C29: 0.2 | D29: -5.9 | F29: 4 | G29: 0.8 | H29: 1005.5 | I29: 0.55 | J29: SEz | K29: T Jenna
A30: 2014-01-29 | B30: -3.1 | C30: -1.4 | D30: -4.8 | F30: 4 | H30: 1007.6 | I30: 0.55 | L30: Von 05:00 Uhr - 15:19 Uhr leichter Dunst.
A31: 2014-01-30 | B31: -1 | C31: 0.8 | D31: -2.1 | F31: 4 | G31: 2.6 | H31: 1012.9 | I31: 0.55
A32: 2014-01-31 | B32: 2.1 | C32: 4.5 | D32: 0.8 | F32: 3 | G32: 1.5 | H32: 1011.2 | I32: 0.55 | J32: Sz | K32: T Mayla
A33: Durchschnitt | B33: =AVERAGE(B2:B32) -> 1.477419355 | C33: =AVERAGE(C2:C32) -> 4.232258065 | D33: =AVERAGE(D2:D32) -> -1.325806452 | H33: =AVERAGE(H2:H32) -> 1011.945161 | I33: =AVERAGE(I2:I32) -> 0.4387096774
A34: Mittel | B34: 0.5 | E34: 45 | F34: - | G34: 64 | H34: 1018.3
A90: 1
A91: 2
A92: 3
A93: 4
A94: 5
A95: 6
A96: 7
A97: 8
A98: 9
A99: 10
A100: 11
A101: 12
A102: 13
A103: 14
A104: 15
A105: 16
A106: 17
A107: 18
A108: 19
A109: 20
A110: 21
A111: 22
A112: 23
A113: 24
A114: 25
A115: 26
A116: 27
A117: 28
A118: 29
A119: 30
A120: 31

Sheet Erdbodentem.
E1: Erdbodentemperatur
B5: Wetterstation: Köttewitz | F5: Monat: | G5: Januar | K5: Jahr: | L5: 2014
A7: Dat. | B7: 7 Uhr | C7: 8 Uhr | D7: 12 Uh | E7: 13 Uhr | F7: 20 Uhr | H7: NN | I7: Frosteindring-
I8: tiefe ≥ - 10 cm
A9: 01. | B9: - | D9: 0,4 °C/0,5 °C/4,3 °C | F9: 0,2 °C/0,4 °C/4,0 °C | H9: n
A10: 02. | B10: - | D10: 0,5 °C/1,2 °C/4,1 °C | F10: - | H10: t
A11: 03. | B11: 0,8 °C/1,2 °C/3,6 °C | D11: 1,1 °C/1,4 °C/3,7 °C | F11: - | H11: n
A12: 04. | B12: - | D12: - | F12: 2,8 °C/2,2 °C/3,6 °C | H12: t
A13: 05. | B13: - | D13: 3,4 °C/3,9 °C/4,4 °C | F13: - | H13: t
A14: 06. | B14: - | D14: 1,4 °C/3,0 °C/4,4 °C | F14: 3,0 °C/2,5 °C/4,4 °C | H14: t
A15: 07. | B15: 3,5 °C/3,5 °C/4,5 °C | D15: - | F15: - | H15: n
A16: 08. | B16: 4,3 °C/3,8 °C/5,1 °C | D16: - | F16: - | H16: n
A17: 09. | B17: 2,3 °C/3,1 °C/5,4 °C | D17: - | F17: 5,4 °C/4,8 °C/5,4 °C | H17: t
A18: 10. | B18: 3,8 °C/4,6 °C/5,5 °C | D18: - | F18: - | H18: n
A19: 11. | B19: - | D19: 2,6 °C/2,8 °C/5,4 °C | F19: - | H19: n
A20: 12. | B20: - | D20: - | F20: 1,8 °C/2,7 °C/5,1 °C | H20: n
A21: 13. | B21: 1,0 °C/1,8 °C/4,7 °C | D21: - | F21: - | H21: n
A22: 14. | B22: 2,0 °C/2,0 °C/4,4 °C | D22: - | F22: - | H22: t
A23: 15. | B23: 0,5 °C/2,2 °C/4,5 °C | D23: - | F23: - | H23: t
A24: 16. | B24: - | D24: - | F24: - | H24: t
A25: 17. | B25: - | D25: - | F25: - | H25: t
A26: 18. | B26: - | D26: 1,8 °C/2,2 °C/4,6 °C | F26: - | H26: n
A27: 19. | B27: - | D27: - | F27: - | H27: t
A28: 20. | B28: - | D28: - | F28: - | H28: t
A29: 21. | B29: 1,6 °C/1,8 °C/5,0 °C | D29: - | F29: 1,4 °C/2,1 °C/4,5 °C | H29: t
A30: 22. | B30: 1,1 °C/1,8 °C/4,5 °C | D30: - | F30: 1,4 °C/1,8 °C/4,4 °C | H30: t
A31: 23. | B31: - | D31: - | F31: - | H31: t
A32: 24. | B32: 1,3 °C/1,6 °C/4,3 °C | D32: - | F32: - | H32: t
A33: 25. | B33: 0,6 °C/1,4 °C/3,7°C | D33: - | F33: 0,4 °C/1,1 °C/3,5 °C | H33: t
A34: 26. | B34: - 0,2 °C/0,9 °C/3,5 °C | D34: -0,2 °C/0,7 °C/3,5 °C | F34: - | H34: t | I34: - 12 cm
A35: 27. | B35: - 0,3 °C/0,5 °C/3,3 °C | D35: - | F35: -0,1 °C/0,4 °C/3,3 °C | H35: t | I35: - 13 cm
A36: 28. | B36: - 0,3 °C/0,4 °C/3,3 °C | D36: - | F36: - | H36: t | I36: - 13 cm
A37: 29. | B37: - 0,2 °C/0,2 °C/3,1 °C | D37: - | F37: - 0,1 °C/0,3 °C/3,1 °C | H37: t | I37: - 15 cm
A38: 30. | B38: - 0,1 °C/0,3 °C3,1 °C | D38: - | F38: - | H38: t | I38: - 13 cm
A39: 31. | B39: - 0,1 °C/0,4 °C/3,1 °C | D39: - | F39: 0,3 °C/0,3 °C/3,1 °C | H39: n
B41: Temperatur - 10 cm/Temperatur - 20 cm/Temperatur -50 cm
